{"text_format":"3","workbook":"xlsx","n_sheets":2,"sheets":["Family Emergency Plan","Emergency Cards"],"not_rendered":{"defined_names":8},"read":"whole","date_system":"1900"}

{"sheet":"Family Emergency Plan","index":0,"n_rows":31,"n_cols":6,"rows_kept":31,"merged":[[0,1,0,4],[4,2,4,5],[6,3,6,5],[7,3,7,5],[8,3,8,5],[10,2,10,5],[17,2,17,5],[18,2,18,5],[19,2,19,5],[26,2,26,5],[27,2,27,5]]}
[null,"ALEXANDER FAMILY"]
[null,"EMERGENCY PLAN"]
[]
[]
[null,null,"Be prepared for an emergency. Sit down with your family and decide what you will do in an emergency, where you will go, and how you will get in contact with each other. Keep a copy of this plan in your emergency supply kit or another safe place where you can access it in the event of a disaster."]
[null,null,"MEETING PLACES"]
[null,null,"Primary meeting place:","At the corner of Spruce and Pine (next to Mrs. Smith's house)."]
[null,null,"Secondary meeting place:","At the police station."]
[null,null,"Out of town instructions:","Find the nearest hospital and do not leave."]
[]
[null,null,"Fill out the following information for each family member and keep it up to date."]
[null,null,"NAME","SOCIAL SECURITY #","DATE OF BIRTH","IMPORTANT MEDICAL INFORMATION"]
[null,null,"David Alexander",{"v":123456789,"d":"123-45-6789"},"1972-03-01","Allergic to peanuts"]
[null,null,"Michelle Alexander",{"v":123456789,"d":"123-45-6789"},"1973-05-06"]
[null,null,"Michael Alexander",{"v":123456789,"d":"123-45-6789"},"1998-04-07"]
[null,null,"Sean P. Alexander",{"v":123456789,"d":"123-45-6789"},"2001-05-18"]
[]
[]
[null,null,"Write down where your family spends the most time, such as work, school, and other places you frequent."]
[null,null,"Most buildings should all have site-speci\u001fc emergency plan that you and your family need to know."]
[null,null,"LOCATION","ADDRESS","PHONE NUMBER","EVACUATION INFORMATION"]
[null,null,"Work 1","1 Microsoft Way","415-555-0134","Rear door, down second hallway"]
[null,null,"Work 2","456 18th Street","415-555-0145"]
[null,null,"School 1",null,"415-555-0156"]
[null,null,"School 2",null,"415-555-0167"]
[]
[]
[null,null,"Keep a record of your insurance policies and contact information."]
[null,null,"POLICY TYPE","POLICY NUMBER","PHONE NUMBER","AGENT"]
[null,null,"Homeowner's","3456T-56-008","415-555-0189","John Smith"]
[null,null,"Auto","0987TS123","415-555-0158","Ashish Kapoor"]

{"sheet":"Emergency Cards","index":1,"n_rows":43,"n_cols":29,"rows_kept":43,"merged":[[1,8,20,8],[1,10,19,10],[1,11,19,11],[1,22,20,22],[1,24,19,24],[1,25,19,25],[2,2,19,6],[2,12,19,12],[2,13,19,13],[2,14,19,14],[2,16,19,20],[2,26,19,26],[2,27,19,27],[2,28,19,28],[21,8,40,8],[21,10,39,10],[21,11,39,11],[21,22,40,22],[21,24,39,24],[21,25,39,25],[22,2,39,6],[22,12,39,12],[22,13,39,13],[22,14,39,14],[22,16,39,20],[22,26,39,26],[22,27,39,27],[22,28,39,28],[41,8,60,8],[41,10,59,10],[41,11,59,11],[41,22,60,22],[41,24,59,24],[41,25,59,25],[42,2,59,6],[42,12,59,12],[42,13,59,13],[42,14,59,14],[42,16,59,20],[42,26,59,26],[42,27,59,27],[42,28,59,28]]}
[]
[{"$nulls":8},"ADDITIONAL INFORMATION",null,{"$f":"FamilyName","v":"ALEXANDER FAMILY"},"EMERGECY PLAN",{"$nulls":10},"ADDITIONAL INFORMATION",null,{"$f":"FamilyName","v":"ALEXANDER FAMILY"},"EMERGECY PLAN"]
[null,null,"Type over this text to add  additional instructions. Text will rotate correctly after you press Enter.",{"$nulls":9},{"$f":"PrimaryLabel&\" \"&PrimaryInstructions","v":"Primary meeting place: At the corner of Spruce and Pine (next to Mrs. Smith's house)."},{"$f":"SecondaryLabel&\" \"&SecondaryInstructions","v":"Secondary meeting place: At the police station."},{"$f":"OtherLabel&\" \"&OtherInstructions","v":"Out of town instructions: Find the nearest hospital and do not leave."},null,{"$f":"AdditionalInstructions","v":"Type over this text to add  additional instructions. Text will rotate correctly after you press Enter."},{"$nulls":9},{"$f":"PrimaryLabel&\" \"&PrimaryInstructions","v":"Primary meeting place: At the corner of Spruce and Pine (next to Mrs. Smith's house)."},{"$f":"SecondaryLabel&\" \"&SecondaryInstructions","v":"Secondary meeting place: At the police station."},{"$f":"OtherLabel&\" \"&OtherInstructions","v":"Out of town instructions: Find the nearest hospital and do not leave."}]
{"$rows_empty":18}
[{"$nulls":8},"ADDITIONAL INFORMATION",null,{"$f":"FamilyName","v":"ALEXANDER FAMILY"},"EMERGECY PLAN",{"$nulls":10},"ADDITIONAL INFORMATION",null,{"$f":"FamilyName","v":"ALEXANDER FAMILY"},"EMERGECY PLAN"]
[null,null,{"$f":"AdditionalInstructions","v":"Type over this text to add  additional instructions. Text will rotate correctly after you press Enter."},{"$nulls":9},{"$f":"PrimaryLabel&\" \"&PrimaryInstructions","v":"Primary meeting place: At the corner of Spruce and Pine (next to Mrs. Smith's house)."},{"$f":"SecondaryLabel&\" \"&SecondaryInstructions","v":"Secondary meeting place: At the police station."},{"$f":"OtherLabel&\" \"&OtherInstructions","v":"Out of town instructions: Find the nearest hospital and do not leave."},null,{"$f":"AdditionalInstructions","v":"Type over this text to add  additional instructions. Text will rotate correctly after you press Enter."},{"$nulls":9},{"$f":"PrimaryLabel&\" \"&PrimaryInstructions","v":"Primary meeting place: At the corner of Spruce and Pine (next to Mrs. Smith's house)."},{"$f":"SecondaryLabel&\" \"&SecondaryInstructions","v":"Secondary meeting place: At the police station."},{"$f":"OtherLabel&\" \"&OtherInstructions","v":"Out of town instructions: Find the nearest hospital and do not leave."}]
{"$rows_empty":18}
[{"$nulls":8},"ADDITIONAL INFORMATION",null,{"$f":"FamilyName","v":"ALEXANDER FAMILY"},"EMERGECY PLAN",{"$nulls":10},"ADDITIONAL INFORMATION",null,{"$f":"FamilyName","v":"ALEXANDER FAMILY"},"EMERGECY PLAN"]
[null,null,{"$f":"AdditionalInstructions","v":"Type over this text to add  additional instructions. Text will rotate correctly after you press Enter."},{"$nulls":9},{"$f":"PrimaryLabel&\" \"&PrimaryInstructions","v":"Primary meeting place: At the corner of Spruce and Pine (next to Mrs. Smith's house)."},{"$f":"SecondaryLabel&\" \"&SecondaryInstructions","v":"Secondary meeting place: At the police station."},{"$f":"OtherLabel&\" \"&OtherInstructions","v":"Out of town instructions: Find the nearest hospital and do not leave."},null,{"$f":"AdditionalInstructions","v":"Type over this text to add  additional instructions. Text will rotate correctly after you press Enter."},{"$nulls":9},{"$f":"PrimaryLabel&\" \"&PrimaryInstructions","v":"Primary meeting place: At the corner of Spruce and Pine (next to Mrs. Smith's house)."},{"$f":"SecondaryLabel&\" \"&SecondaryInstructions","v":"Secondary meeting place: At the police station."},{"$f":"OtherLabel&\" \"&OtherInstructions","v":"Out of town instructions: Find the nearest hospital and do not leave."}]